[Event "EYCC Girls U10 2021"]
[Site "Tornelo"]
[Date "2021.10.15"]
[Round "5.9"]
[White "Kutateladze, Anastasia"]
[Black "Sunea, Sara Maria"]
[Result "1-0"]
[ECO "B33"]
[WhiteElo "1137"]
[BlackElo "1342"]
[Annotator "NA RC"]
[PlyCount "81"]
[EventDate "2021.10.15"]
[EventType "swiss"]
[EventCountry "NET"]
[SourceTitle "playchess.com"]
[Source "ChessBase"]
[SourceQuality "1"]
[TimeControl "5400+30"]

1. e4 {[%emt 0:00:30]} c5 {[%emt 0:00:41]} 2. Nf3 {[%emt 0:00:09]} Nc6 {[%emt 0:00:13]} 3. d4 {[%emt 0:00:06]} cxd4 {[%emt 0:00:13]} 4. Nxd4 {[%emt 0:00:07]} Nf6 {[%emt 0:00:15]} 5. Nc3 {[%emt 0:00:27]} e5 {[%emt 0:00:13]} 6. Nb3 {[%emt 0:08:33]} Bb4 {[%emt 0:01:02]} 7. f3 {[%emt 0:01:30]} d5 {[%emt 0:13:06]} 8. exd5 {[%emt 0:09:11]} Nxd5 {[%emt 0:01:45]} 9. Bd2 {[%emt 0:00:22]} Bxc3 {[%emt 0:03:50]} 10. Bxc3 {[%emt 0:03:41]} Nxc3 {[%emt 0:00:18]} 11. Qxd8+ {[%emt 0:01:01]} Kxd8 {[%emt 0:00:30]} 12. bxc3 {[%emt 0:00:15]} b6 {[%emt 0:02:16]} 13. O-O-O+ {[%emt 0:00:28]} Kc7 {[%emt 0:00:50]} 14. Bc4 {[%emt 0:00:38]} f6 {[%emt 0:00:51]} 15. Bd5 {[%emt 0:01:04]} Bb7 {[%emt 0:00:18]} 16. Rd2 {[%emt 0:01:03]} Rad8 {[%emt 0:04:47]} 17. Rhd1 {[%emt 0:01:43]} Rd6 {[%emt 0:10:40]} 18. Be4 {[%emt 0:06:30]} Rxd2 {[%emt 0:00:29]} 19. Nxd2 {[%emt 0:00:34]} Na5 {[%emt 0:12:20]} 20. Bxb7 {[%emt 0:03:56]} Kxb7 {[%emt 0:00:26]} 21. Ne4 {[%emt 0:00:27]} Kc7 {[%emt 0:01:16]} 22. Nd6 {[%emt 0:00:48]} a6 {[%emt 0:03:28]} 23. Nf5 {[%emt 0:03:00]} g6 {[%emt 0:01:56]} 24. Ne7 {[%emt 0:00:35]} f5 {[%emt 0:06:03]} 25. Nd5+ {[%emt 0:00:41]} Kb7 {[%emt 0:03:18]} 26. Nb4 {[%emt 0:01:44]} Nc6 {[%emt 0:13:20]} 27. Rd7+ {[%emt 0:01:30]} Kc8 {[%emt 0:00:14]} 28. Rf7 {[%emt 0:00:27]} Nxb4 {[%emt 0:00:38]} 29. cxb4 {[%emt 0:00:31]} Re8 {[%emt 0:05:08]} 30. Rxh7 {[%emt 0:01:10]} e4 {[%emt 0:00:25]} 31. fxe4 {[%emt 0:01:30]} Rxe4 {[%emt 0:00:15]} 32. a3 {[%emt 0:00:50]} Re2 {[%emt 0:00:42]} 33. g3 {[%emt 0:00:18]} Re3 {[%emt 0:00:10]} 34. Kb2 {[%emt 0:00:16]} Kb8 {[%emt 0:00:46]} 35. Rh6 {[%emt 0:04:09]} Re6 {[%emt 0:00:11]} 36. h4 {[%emt 0:00:30]} Rc6 {[%emt 0:01:28]} 37. h5 {[%emt 0:01:03]} Kb7 {[%emt 0:00:27]} 38. Rxg6 {[%emt 0:03:21]} Rc7 {[%emt 0:00:16]} 39. h6 {[%emt 0:00:17]} Kc8 {[%emt 0:00:31]} 40. Rg8+ {[%emt 0:00:38]} Kb7 {[%emt 0:00:16]} 41. Rg7 {[%emt 0:00:06]} 1-0

[Event "EYCC Girls U10 2021"]
[Site "Tornelo"]
[Date "2021.10.15"]
[Round "5.11"]
[White "Gratskova, Anastasia"]
[Black "Ashotia, Barbare"]
[Result "1-0"]
[ECO "D00"]
[WhiteElo "1313"]
[BlackElo "1128"]
[Annotator "NA RC"]
[PlyCount "129"]
[EventDate "2021.10.15"]
[EventType "swiss"]
[EventCountry "NET"]
[SourceTitle "playchess.com"]
[Source "ChessBase"]
[SourceQuality "1"]
[TimeControl "5400+30"]

1. d4 {[%emt 0:00:30]} d5 {[%emt 0:00:38]} 2. Bf4 {[%emt 0:00:08]} Nf6 {[%emt 0:02:02]} 3. Nc3 {[%emt 0:00:09]} c6 {[%emt 0:05:25]} 4. e3 {[%emt 0:00:21]} Bf5 {[%emt 0:01:32]} 5. f3 {[%emt 0:00:28]} Bg6 {[%emt 0:04:02]} 6. g4 {[%emt 0:00:49]} h6 {[%emt 0:01:46]} 7. h4 {[%emt 0:00:23]} e6 {[%emt 0:04:18]} 8. Bd3 {[%emt 0:00:20]} Bxd3 {[%emt 0:02:05]} 9. Qxd3 {[%emt 0:00:08]} Bd6 {[%emt 0:01:50]} 10. Nge2 {[%emt 0:01:57]} Qc7 {[%emt 0:03:21]} 11. Bxd6 {[%emt 0:09:46]} Qxd6 {[%emt 0:02:05]} 12. O-O-O {[%emt 0:00:24]} Nbd7 {[%emt 0:03:02]} 13. e4 {[%emt 0:06:18]} dxe4 {[%emt 0:07:14]} 14. Nxe4 {[%emt 0:00:36]} Qe7 {[%emt 0:01:33]} 15. N2g3 {[%emt 0:02:00]} O-O-O {[%emt 0:02:41]} 16. c4 {[%emt 0:10:06]} Nxe4 {[%emt 0:06:14]} 17. fxe4 {[%emt 0:03:20]} f6 {[%emt 0:16:23]} 18. Qc3 {[%emt 0:02:55]} Qd6 {[%emt 0:02:29]} 19. Rhf1 {[%emt 0:01:52]} Qc7 {[%emt 0:02:58]} 20. Kb1 {[%emt 0:01:17]} Nb6 {[%emt 0:05:18]} 21. b3 {[%emt 0:01:21]} Kb8 {[%emt 0:03:23]} 22. Kb2 {[%emt 0:02:04]} Rd7 {[%emt 0:07:00]} 23. c5 {[%emt 0:07:19]} Nc8 {[%emt 0:01:44]} 24. Rf3 {[%emt 0:06:23]} Rhd8 {[%emt 0:03:15]} 25. Qc4 {[%emt 0:07:43]} Re7 {[%emt 0:01:49]} 26. Rd2 {[%emt 0:01:17]} Qd7 {[%emt 0:00:54]} 27. h5 {[%emt 0:00:57]} Qe8 {[%emt 0:00:57]} 28. Ne2 {[%emt 0:02:32]} e5 {[%emt 0:03:45]} 29. d5 {[%emt 0:01:26]} cxd5 {[%emt 0:00:10]} 30. exd5 {[%emt 0:04:27]} Rc7 {[%emt 0:00:27]} 31. Qb4 {[%emt 0:02:10]} e4 {[%emt 0:01:38]} 32. Rc3 {[%emt 0:01:54]} Ka8 {[%emt 0:01:46]} 33. d6 {[%emt 0:01:11]} Rf7 {[%emt 0:00:27]} 34. Rd4 {[%emt 0:00:42]} f5 {[%emt 0:00:48]} 35. Ng3 {[%emt 0:06:27]} fxg4 {[%emt 0:01:33]} 36. Rxe4 {[%emt 0:00:14]} Qc6 {[%emt 0:00:16]} 37. Rc2 {[%emt 0:02:49]} Qd5 {[%emt 0:00:49]} 38. Qd4 {[%emt 0:00:58]} Qxd4+ {[%emt 0:00:53]} 39. Rxd4 {[%emt 0:00:05]} Rdd7 {[%emt 0:00:22]} 40. Rxg4 {[%emt 0:00:09]} Kb8 {[%emt 0:00:18]} 41. b4 {[%emt 0:00:15]} a6 {[%emt 0:00:07]} 42. Re2 {[%emt 0:00:21]} Rd8 {[%emt 0:00:14]} 43. a4 {[%emt 0:00:40]} Na7 {[%emt 0:00:23]} 44. Rge4 {[%emt 0:01:28]} Rf3 {[%emt 0:00:48]} 45. R2e3 {[%emt 0:00:07]} Rff8 {[%emt 0:01:00]} 46. Kc3 {[%emt 0:00:43]} Nc8 {[%emt 0:00:32]} 47. Kc4 {[%emt 0:00:48]} b6 {[%emt 0:00:29]} 48. a5 {[%emt 0:00:47]} bxc5 {[%emt 0:00:23]} 49. bxc5 {[%emt 0:00:05]} Kb7 {[%emt 0:00:26]} 50. Kd5 {[%emt 0:01:20]} Ka8 {[%emt 0:00:20]} 51. Re5 {[%emt 0:00:55]} Kb8 {[%emt 0:00:30]} 52. Rf5 {[%emt 0:01:21]} Rg8 {[%emt 0:00:26]} 53. Rfe5 {[%emt 0:01:08]} g6 {[%emt 0:00:57]} 54. hxg6 {[%emt 0:00:29]} Rxg6 {[%emt 0:00:10]} 55. Nf5 {[%emt 0:00:23]} Rf6 {[%emt 0:01:18]} 56. Nd4 {[%emt 0:00:40]} Ka8 {[%emt 0:00:36]} 57. Nc6 {[%emt 0:00:59]} Rg8 {[%emt 0:00:32]} 58. Ne7 {[%emt 0:00:47]} Rd8 {[%emt 0:00:26]} 59. Nxc8 {[%emt 0:00:25]} Rxc8 {[%emt 0:00:10]} 60. d7 {[%emt 0:00:26]} Rb8 {[%emt 0:00:19]} 61. Re8 {[%emt 0:00:15]} Rf5+ {[%emt 0:00:43]} 62. Kc6 {[%emt 0:00:16]} Rf6+ {[%emt 0:00:16]} 63. Kc7 {[%emt 0:00:07]} Ka7 {[%emt 0:01:09]} 64. Rxb8 {[%emt 0:00:21]} Rf8 {[%emt 0:00:26]} 65. Rb7+ {[%emt 0:00:29]} 1-0

[Event "EYCC Girls U10 2021"]
[Site "Tornelo"]
[Date "2021.10.15"]
[Round "5.12"]
[White "Ashton, Alannah"]
[Black "Kuznetsova, Ekaterina A"]
[Result "0-1"]
[ECO "B21"]
[WhiteElo "1294"]
[BlackElo "1085"]
[Annotator "NA RC"]
[PlyCount "64"]
[EventDate "2021.10.15"]
[EventType "swiss"]
[EventCountry "NET"]
[SourceTitle "playchess.com"]
[Source "ChessBase"]
[SourceQuality "1"]
[TimeControl "5400+30"]

1. e4 {[%emt 0:00:30]} c5 {[%emt 0:00:35]} 2. d4 {[%emt 0:00:04]} cxd4 {[%emt 0:00:02]} 3. c3 {[%emt 0:00:03]} dxc3 {[%emt 0:00:02]} 4. Nxc3 {[%emt 0:00:03]} Nc6 {[%emt 0:00:04]} 5. Nf3 {[%emt 0:00:04]} e6 {[%emt 0:00:09]} 6. e5 {[%emt 0:01:57]} Bb4 {[%emt 0:00:19]} 7. Bc4 {[%emt 0:01:14]} Qa5 {[%emt 0:01:23]} 8. O-O {[%emt 0:12:47]} Bxc3 {[%emt 0:07:10]} 9. bxc3 {[%emt 0:00:06]} Qxc3 {[%emt 0:04:32]} 10. Qd6 {[%emt 0:00:08]} Qxc4 {[%emt 0:06:50]} 11. Ba3 {[%emt 0:00:08]} Nge7 {[%emt 0:01:42]} 12. Rfd1 {[%emt 0:01:30]} O-O {[%emt 0:02:02]} 13. Rac1 {[%emt 0:00:11]} Qxa2 {[%emt 0:10:35]} 14. Rxc6 {[%emt 0:00:24]} bxc6 {[%emt 0:01:56]} 15. Qxe7 {[%emt 0:00:20]} Ba6 {[%emt 0:00:59]} 16. Bd6 {[%emt 0:01:04]} Be2 {[%emt 0:05:11]} 17. Re1 {[%emt 0:00:52]} Bxf3 {[%emt 0:04:50]} 18. gxf3 {[%emt 0:00:07]} Qd5 {[%emt 0:01:55]} 19. Kg2 {[%emt 0:01:16]} a5 {[%emt 0:04:04]} 20. Rg1 {[%emt 0:00:24]} f6 {[%emt 0:05:33]} 21. Kf1 {[%emt 0:00:45]} Rf7 {[%emt 0:03:19]} 22. exf6 {[%emt 0:00:06]} Rxe7 {[%emt 0:00:46]} 23. Bxe7 {[%emt 0:00:05]} g6 {[%emt 0:00:28]} 24. Rg4 {[%emt 0:00:36]} Qxf3 {[%emt 0:00:56]} 25. Rg3 {[%emt 0:01:32]} Qd1+ {[%emt 0:01:38]} 26. Kg2 {[%emt 0:01:50]} d6 {[%emt 0:01:31]} 27. Rf3 {[%emt 0:00:18]} Kf7 {[%emt 0:00:19]} 28. Rf4 {[%emt 0:00:49]} a4 {[%emt 0:01:56]} 29. Rh4 {[%emt 0:00:07]} h5 {[%emt 0:00:15]} 30. Rf4 {[%emt 0:00:27]} a3 {[%emt 0:00:56]} 31. Rb4 {[%emt 0:00:09]} Qd5+ {[%emt 0:00:31]} 32. Kg1 {[%emt 0:00:11]} c5 {[%emt 0:01:01]} 0-1

[Event "EYCC Girls U10 2021"]
[Site "Tornelo"]
[Date "2021.10.15"]
[Round "6.2"]
[White "Bashirli, Saadat"]
[Black "Sultanova, Kristina"]
[Result "1-0"]
[ECO "B31"]
[WhiteElo "1284"]
[BlackElo "1293"]
[Annotator "NA RC"]
[PlyCount "87"]
[EventDate "2021.10.15"]
[EventType "swiss"]
[EventCountry "NET"]
[SourceTitle "playchess.com"]
[Source "ChessBase"]
[SourceQuality "1"]
[TimeControl "5400+30"]

1. e4 {[%emt 0:00:30]} c5 {[%emt 0:00:38]} 2. Nf3 {[%emt 0:00:05]} Nc6 {[%emt 0:00:08]} 3. Bb5 {[%emt 0:00:11]} g6 {[%emt 0:00:07]} 4. O-O {[%emt 0:00:10]} Bg7 {[%emt 0:00:07]} 5. c3 {[%emt 0:00:08]} e5 {[%emt 0:00:11]} 6. Re1 {[%emt 0:00:21]} Nge7 {[%emt 0:00:08]} 7. d3 {[%emt 0:00:12]} h6 {[%emt 0:00:17]} 8. Be3 {[%emt 0:00:08]} b6 {[%emt 0:00:09]} 9. d4 {[%emt 0:00:17]} exd4 {[%emt 0:00:49]} 10. cxd4 {[%emt 0:00:05]} cxd4 {[%emt 0:00:55]} 11. Nxd4 {[%emt 0:01:16]} O-O {[%emt 0:00:27]} 12. Nc3 {[%emt 0:00:13]} Bb7 {[%emt 0:00:54]} 13. Nxc6 {[%emt 0:02:41]} dxc6 {[%emt 0:00:31]} 14. Bc4 {[%emt 0:00:14]} c5 {[%emt 0:02:21]} 15. Qg4 {[%emt 0:00:39]} Nc6 {[%emt 0:12:43]} 16. f4 {[%emt 0:03:11]} Kh7 {[%emt 0:02:05]} 17. Rad1 {[%emt 0:00:34]} Nd4 {[%emt 0:00:30]} 18. Bxd4 {[%emt 0:00:30]} Bxd4+ {[%emt 0:06:03]} 19. Kh1 {[%emt 0:00:24]} a6 {[%emt 0:00:50]} 20. Bd5 {[%emt 0:02:55]} Bxd5 {[%emt 0:00:24]} 21. Nxd5 {[%emt 0:03:37]} b5 {[%emt 0:05:45]} 22. b4 {[%emt 0:01:44]} Qc8 {[%emt 0:05:53]} 23. Qh4 {[%emt 0:02:04]} Qd8 {[%emt 0:08:00]} 24. Qg3 {[%emt 0:01:37]} Rc8 {[%emt 0:03:55]} 25. bxc5 {[%emt 0:02:04]} Bxc5 {[%emt 0:00:16]} 26. e5 {[%emt 0:00:54]} Qa5 {[%emt 0:02:38]} 27. Nf6+ {[%emt 0:02:48]} Kg7 {[%emt 0:00:55]} 28. f5 {[%emt 0:00:55]} Rfd8 {[%emt 0:00:48]} 29. fxg6 {[%emt 0:02:25]} fxg6 {[%emt 0:00:45]} 30. Qg4 {[%emt 0:01:37]} Be7 {[%emt 0:01:23]} 31. Rf1 {[%emt 0:01:00]} Rxd1 {[%emt 0:01:32]} 32. Rxd1 {[%emt 0:00:19]} Rd8 {[%emt 0:00:18]} 33. Rf1 {[%emt 0:00:21]} Qxa2 {[%emt 0:01:28]} 34. Nh5+ {[%emt 0:07:13]} Kh7 {[%emt 0:00:22]} 35. Nf4 {[%emt 0:01:37]} Qg8 {[%emt 0:01:43]} 36. e6 {[%emt 0:04:40]} Rd6 {[%emt 0:01:13]} 37. h4 {[%emt 0:03:49]} a5 {[%emt 0:11:41]} 38. h5 {[%emt 0:03:50]} g5 {[%emt 0:00:11]} 39. Qf5+ {[%emt 0:00:59]} Kh8 {[%emt 0:01:07]} 40. Ng6+ {[%emt 0:00:21]} Kg7 {[%emt 0:00:15]} 41. Nxe7 {[%emt 0:02:57]} Qe8 {[%emt 0:02:29]} 42. Qe5+ {[%emt 0:00:42]} Kh7 {[%emt 0:00:17]} 43. Rf7+ {[%emt 0:00:18]} Qxf7 {[%emt 0:00:13]} 44. exf7 {[%emt 0:00:04]} 1-0

[Event "EYCC Girls U10 2021"]
[Site "Tornelo"]
[Date "2021.10.15"]
[Round "6.3"]
[White "Zeybek, Kayla Nil"]
[Black "Aydogan, Arya"]
[Result "1-0"]
[ECO "C54"]
[WhiteElo "1221"]
[BlackElo "1250"]
[Annotator "NA RC"]
[PlyCount "77"]
[EventDate "2021.10.15"]
[EventType "swiss"]
[EventCountry "NET"]
[SourceTitle "playchess.com"]
[Source "ChessBase"]
[SourceQuality "1"]
[TimeControl "5400+30"]

1. e4 {[%emt 0:00:30]} e5 {[%emt 0:00:35]} 2. Nf3 {[%emt 0:00:09]} Nc6 {[%emt 0:00:07]} 3. Bc4 {[%emt 0:00:40]} Bc5 {[%emt 0:00:09]} 4. c3 {[%emt 0:00:08]} Nf6 {[%emt 0:00:17]} 5. d4 {[%emt 0:00:04]} exd4 {[%emt 0:00:06]} 6. e5 {[%emt 0:00:10]} d5 {[%emt 0:00:04]} 7. Bb5 {[%emt 0:00:03]} Ne4 {[%emt 0:00:04]} 8. cxd4 {[%emt 0:00:06]} Bb6 {[%emt 0:00:04]} 9. Nc3 {[%emt 0:00:29]} O-O {[%emt 0:00:32]} 10. O-O {[%emt 0:00:11]} Bg4 {[%emt 0:01:04]} 11. Be3 {[%emt 0:00:14]} Ne7 {[%emt 0:08:18]} 12. h3 {[%emt 0:00:41]} Bh5 {[%emt 0:01:07]} 13. Qc2 {[%emt 0:02:14]} Bg6 {[%emt 0:04:56]} 14. Bd3 {[%emt 0:00:27]} f5 {[%emt 0:07:38]} 15. Rac1 {[%emt 0:09:43]} c6 {[%emt 0:14:03]} 16. Ne2 {[%emt 0:09:10]} Rc8 {[%emt 0:13:38]} 17. b4 {[%emt 0:00:57]} Bh5 {[%emt 0:07:01]} 18. Nf4 {[%emt 0:13:12]} Bf7 {[%emt 0:02:58]} 19. a4 {[%emt 0:23:26]} g5 {[%emt 0:05:22]} 20. Ne2 {[%emt 0:01:51]} f4 {[%emt 0:02:43]} 21. Bd2 {[%emt 0:01:13]} Bg6 {[%emt 0:01:20]} 22. a5 {[%emt 0:00:43]} Bc7 {[%emt 0:00:17]} 23. Nh2 {[%emt 0:03:55]} Kg7 {[%emt 0:04:43]} 24. Be1 {[%emt 0:01:30]} Nf5 {[%emt 0:01:47]} 25. Ng4 {[%emt 0:05:11]} f3 {[%emt 0:02:00]} 26. gxf3 {[%emt 0:01:19]} h5 {[%emt 0:05:16]} 27. Nh2 {[%emt 0:01:27]} g4 {[%emt 0:03:28]} 28. fxe4 {[%emt 0:03:52]} Nh4 {[%emt 0:03:27]} 29. hxg4 {[%emt 0:04:35]} hxg4 {[%emt 0:01:35]} 30. exd5 {[%emt 0:00:46]} Qxd5 {[%emt 0:01:16]} 31. f3 {[%emt 0:01:14]} Nxf3+ {[%emt 0:02:13]} 32. Nxf3 {[%emt 0:00:09]} gxf3 {[%emt 0:00:13]} 33. Bxg6 {[%emt 0:06:07]} fxe2 {[%emt 0:00:58]} 34. Rxf8 {[%emt 0:00:07]} Rxf8 {[%emt 0:00:44]} 35. Qxe2 {[%emt 0:03:36]} Qxd4+ {[%emt 0:00:56]} 36. Bf2 {[%emt 0:00:37]} Qd8 {[%emt 0:06:16]} 37. Qg4 {[%emt 0:01:31]} Rg8 {[%emt 0:00:30]} 38. Rd1 {[%emt 0:01:04]} Qf8 {[%emt 0:00:41]} 39. Rd7+ {[%emt 0:00:12]} 1-0

[Event "EYCC Girls U10 2021"]
[Site "Tornelo"]
[Date "2021.10.15"]
[Round "6.4"]
[White "Asachenko, Ksenia"]
[Black "Blinova, Sofia"]
[Result "1/2-1/2"]
[ECO "C42"]
[WhiteElo "1382"]
[BlackElo "1297"]
[Annotator "NA RC"]
[PlyCount "42"]
[EventDate "2021.10.15"]
[EventType "swiss"]
[EventCountry "NET"]
[SourceTitle "playchess.com"]
[Source "ChessBase"]
[SourceQuality "1"]
[TimeControl "5400+30"]

1. e4 {[%emt 0:00:30]} e5 {[%emt 0:01:01]} 2. Nf3 {[%emt 0:00:08]} Nf6 {[%emt 0:00:10]} 3. Nxe5 {[%emt 0:00:31]} d6 {[%emt 0:00:08]} 4. Nf3 {[%emt 0:00:04]} Nxe4 {[%emt 0:00:04]} 5. Bd3 {[%emt 0:00:08]} Nf6 {[%emt 0:00:37]} 6. O-O {[%emt 0:00:04]} Be7 {[%emt 0:00:04]} 7. Re1 {[%emt 0:00:17]} O-O {[%emt 0:00:07]} 8. c3 {[%emt 0:00:12]} Bg4 {[%emt 0:00:32]} 9. Bc2 {[%emt 0:00:08]} Nbd7 {[%emt 0:01:15]} 10. d4 {[%emt 0:00:14]} d5 {[%emt 0:02:13]} 11. Qd3 {[%emt 0:00:31]} Bh5 {[%emt 0:01:54]} 12. Ne5 {[%emt 0:04:08]} Bg6 {[%emt 0:03:18]} 13. Nxg6 {[%emt 0:00:17]} fxg6 {[%emt 0:00:16]} 14. Bg5 {[%emt 0:06:19]} Bd6 {[%emt 0:00:59]} 15. h3 {[%emt 0:04:31]} h6 {[%emt 0:01:06]} 16. Bxh6 {[%emt 0:18:28]} Ne4 {[%emt 0:02:08]} 17. Be3 {[%emt 0:00:40]} Qh4 {[%emt 0:00:52]} 18. Rf1 {[%emt 0:02:05]} Ng3 {[%emt 0:10:15]} 19. Re1 {[%emt 0:05:44]} Ne4 {[%emt 0:00:38]} 20. Rf1 {[%emt 0:07:34]} Ng3 {[%emt 0:00:13]} 21. Re1 {[%emt 0:01:12]} Ne4 {[%emt 0:00:16]} 1/2-1/2

[Event "EYCC Girls U10 2021"]
[Site "Tornelo"]
[Date "2021.10.15"]
[Round "6.5"]
[White "Lajdamik, Kinga"]
[Black "Semenova, Vasilisa"]
[Result "1/2-1/2"]
[ECO "B13"]
[WhiteElo "1367"]
[BlackElo "1305"]
[Annotator "NA RC"]
[PlyCount "108"]
[EventDate "2021.10.15"]
[EventType "swiss"]
[EventCountry "NET"]
[SourceTitle "playchess.com"]
[Source "ChessBase"]
[SourceQuality "1"]
[TimeControl "5400+30"]

1. e4 {[%emt 0:00:30]} c6 {[%emt 0:00:34]} 2. d4 {[%emt 0:00:07]} d5 {[%emt 0:00:03]} 3. exd5 {[%emt 0:00:12]} cxd5 {[%emt 0:00:04]} 4. Bd3 {[%emt 0:00:08]} Nc6 {[%emt 0:00:04]} 5. c3 {[%emt 0:00:05]} Nf6 {[%emt 0:00:04]} 6. Bf4 {[%emt 0:00:57]} Bg4 {[%emt 0:00:13]} 7. Ne2 {[%emt 0:00:43]} e6 {[%emt 0:00:07]} 8. O-O {[%emt 0:00:08]} Be7 {[%emt 0:00:13]} 9. Re1 {[%emt 0:02:02]} O-O {[%emt 0:00:09]} 10. Qd2 {[%emt 0:03:05]} a6 {[%emt 0:00:32]} 11. Ng3 {[%emt 0:00:20]} Bh5 {[%emt 0:01:21]} 12. Qe3 {[%emt 0:16:18]} Bg6 {[%emt 0:07:49]} 13. Bxg6 {[%emt 0:00:24]} hxg6 {[%emt 0:00:06]} 14. Qd3 {[%emt 0:05:54]} b5 {[%emt 0:02:26]} 15. Nd2 {[%emt 0:01:41]} Qb6 {[%emt 0:01:09]} 16. Nf3 {[%emt 0:04:03]} Rac8 {[%emt 0:00:29]} 17. Ne5 {[%emt 0:02:49]} Nxe5 {[%emt 0:00:54]} 18. Bxe5 {[%emt 0:03:58]} Nd7 {[%emt 0:01:20]} 19. Bf4 {[%emt 0:00:18]} Bf6 {[%emt 0:00:49]} 20. Nf1 {[%emt 0:02:50]} b4 {[%emt 0:00:41]} 21. Nd2 {[%emt 0:16:01]} bxc3 {[%emt 0:00:53]} 22. bxc3 {[%emt 0:00:08]} Qa5 {[%emt 0:00:39]} 23. Bd6 {[%emt 0:00:36]} Rfd8 {[%emt 0:01:59]} 24. Bb4 {[%emt 0:00:40]} Qa4 {[%emt 0:01:14]} 25. Nb3 {[%emt 0:04:32]} Re8 {[%emt 0:02:16]} 26. f4 {[%emt 0:00:45]} Be7 {[%emt 0:00:41]} 27. Ba5 {[%emt 0:01:00]} Bd8 {[%emt 0:00:24]} 28. Qxa6 {[%emt 0:02:14]} Bxa5 {[%emt 0:00:22]} 29. Qxa5 {[%emt 0:00:10]} Qxa5 {[%emt 0:00:10]} 30. Nxa5 {[%emt 0:00:09]} Rxc3 {[%emt 0:00:04]} 31. Nb3 {[%emt 0:00:38]} Nb6 {[%emt 0:00:12]} 32. Rec1 {[%emt 0:03:38]} Rec8 {[%emt 0:00:18]} 33. Kf2 {[%emt 0:06:42]} Rxc1 {[%emt 0:00:19]} 34. Rxc1 {[%emt 0:00:10]} Ra8 {[%emt 0:00:05]} 35. Ra1 {[%emt 0:01:27]} Ra3 {[%emt 0:00:06]} 36. Ke2 {[%emt 0:00:16]} Nc4 {[%emt 0:00:08]} 37. Kd3 {[%emt 0:00:31]} Na5 {[%emt 0:00:18]} 38. Rb1 {[%emt 0:03:28]} Rxa2 {[%emt 0:00:14]} 39. Nxa5 {[%emt 0:00:11]} Rxa5 {[%emt 0:00:08]} 40. Rb8+ {[%emt 0:00:09]} Kh7 {[%emt 0:00:04]} 41. Rb7 {[%emt 0:00:12]} Ra3+ {[%emt 0:00:12]} 42. Ke2 {[%emt 0:05:11]} Ra4 {[%emt 0:00:30]} 43. Ke3 {[%emt 0:00:19]} Ra2 {[%emt 0:00:18]} 44. Rxf7 {[%emt 0:00:12]} Rxg2 {[%emt 0:00:06]} 45. Re7 {[%emt 0:00:25]} Rxh2 {[%emt 0:00:17]} 46. Rxe6 {[%emt 0:00:11]} Rh3+ {[%emt 0:00:06]} 47. Ke2 {[%emt 0:00:17]} Rh5 {[%emt 0:00:31]} 48. Re5 {[%emt 0:02:23]} Kg8 {[%emt 0:00:12]} 49. Kf3 {[%emt 0:00:22]} Kf7 {[%emt 0:00:19]} 50. Kg4 {[%emt 0:00:16]} Kf6 {[%emt 0:00:16]} 51. Re3 {[%emt 0:08:42]} Rf5 {[%emt 0:01:50]} 52. Re5 {[%emt 0:00:33]} Rh5 {[%emt 0:00:13]} 53. Re3 {[%emt 0:00:07]} Rh8 {[%emt 0:00:53]} 54. Re5 {[%emt 0:00:34]} Rh5 {[%emt 0:00:17]} 1/2-1/2